fUST/lending_fUST_20250716
["ID","MTS","AMOUNT","RATE_DAILY","PERIOD"]
[372452150,1752648648499,-0.2367955,0.00022465,2]
[372452154,1752648708897,300.0,8.2e-07,120]
[372452155,1752648728813,300.0,8.2e-07,120]
[372452156,1752648742654,300.0,8.2e-07,120]
[372452157,1752648791159,300.0,8.2e-07,120]
[372452158,1752648809812,300.0,8.2e-07,120]
[372452159,1752648842963,300.0,8.2e-07,120]
[372452160,1752648858920,300.0,8.2e-07,120]
[372452161,1752648872132,300.0,8.2e-07,120]
[372452162,1752648886849,151.0,8.2e-07,120]
[372452163,1752648927613,-2025.6140191,0.00018175,2]
[372452164,1752648927753,-948.7719618,0.00018175,2]
[372452165,1752648927786,-1200.0,0.00019077,2]
[372452166,1752648927817,-215.21000257,0.00019078,2]
[372452167,1752648929870,-2157.77367477,0.00019078,2]
[372452168,1752648930004,-5000.0,0.00019078,2]
[372452169,1752648930522,-790.14840627,0.00019078,2]
[372452170,1752648930552,-254.97743604,0.00019168,2]
[372452171,1752648930583,-300.0,0.00019176,2]
[372452172,1752648930612,-300.0,0.00019176,2]
[372452173,1752648930643,-300.0,0.00019176,2]
[372452174,1752648930672,-300.0,0.00019176,2]
[372452175,1752648930702,-209.74831538,0.00019176,2]
[372452176,1752648930808,-90.25168462,0.00019176,2]
[372452177,1752648931127,-1200.0,0.00019177,2]
[372452178,1752648931163,-500.0,0.00019177,2]
[372452179,1752648931193,-460.67903075,0.00019178,2]
[372452180,1752648931227,-218.6419385,0.00019178,2]
[372452181,1752648931295,-241.3580615,0.00019178,2]
[372452182,1752648931327,-460.0,0.00019178,2]
[372452183,1752648931359,-460.0,0.00019178,2]
[372452184,1752648931391,-460.0,0.00019178,2]
[372452185,1752648931422,-460.0,0.00019178,2]
[372452186,1752648931573,-460.0,0.00019178,2]
[372452187,1752648931698,-421.13,0.00019178,2]
[372452188,1752648931728,-460.0,0.00019178,2]
[372452189,1752648931758,-460.0,0.00019178,2]
[372452190,1752648931791,-533.96,0.00019178,2]
[372452191,1752648931820,-462.82350568,0.00019178,2]
[372452192,1752648931909,-460.0,0.00019178,2]
[372452193,1752648931943,-460.0,0.00019178,2]
[372452194,1752648931975,-460.0,0.00019178,2]
[372452195,1752648932006,-460.0,0.00019178,2]
[372452196,1752648932035,-460.0,0.00019178,2]
[372452197,1752648932191,-460.0,0.00019178,2]
[372452198,1752648932226,-460.0,0.00019178,2]
[372452199,1752648932258,-463.69689778,0.00019178,2]
[372452200,1752648932293,-460.0,0.00019178,2]
[372452201,1752648932323,-460.87283902,0.00019178,2]
[372452202,1752648932600,-266.99649432,0.00019178,2]
[372452203,1752648932615,-193.00350568,0.00019178,2]
[372452204,1752648932624,-266.99649432,0.00019178,2]
[372452205,1752648932643,-193.00350568,0.00019178,2]
[372452206,1752648932653,-267.86933334,0.00019178,2]
[372452207,1752648932693,-192.13066666,0.00019178,2]
[372452208,1752648932722,-313.66168672,0.00019178,2]
[372452209,1752648932755,-755.93,0.00019178,2]
[372452210,1752648932787,-460.0,0.00019178,2]
[372452211,1752648932817,-460.0,0.00019178,2]
[372452212,1752648932847,-148.0801252,0.00019178,2]
[372452213,1752648932914,-340.39504284,0.00019178,2]
[372452214,1752648932944,-1000.0,0.00019178,2]
[372452215,1752648932976,-460.0,0.00019178,2]
[372452216,1752648933008,-460.0,0.00019178,2]
[372452217,1752648933038,-19.20991432,0.00019178,2]
[372452218,1752648933252,-440.79008568,0.00019178,2]
[372452219,1752648933282,-460.0,0.00019178,2]
[372452220,1752648933313,-460.0,0.00019178,2]
[372452221,1752648933345,-460.0,0.00019178,2]
[372452222,1752648933378,-460.0,0.00019178,2]
[372452223,1752648933537,-460.0,0.00019178,2]
[372452224,1752648933567,-460.0,0.00019178,2]
[372452225,1752648933597,-460.0,0.00019178,2]
[372452226,1752648933627,-460.0,0.00019178,2]
[372452227,1752648933657,-460.0,0.00019178,2]
[372452228,1752648933815,-460.0,0.00019178,2]
[372452229,1752648933846,-460.0,0.00019178,2]
[372452230,1752648933878,-460.0,0.00019178,2]
[372452231,1752648933911,-504.05,0.00019178,2]
[372452232,1752648933941,-460.28800984,0.00019178,2]
[372452233,1752648934100,-464.07287369,0.00019178,2]
[372452234,1752648934251,-1651.84,0.00019178,2]
[372452235,1752648934284,-308.17425262,0.00019178,2]
[372452236,1752648934459,-151.82574738,0.00019178,2]
[372452237,1752648934490,-460.0,0.00019178,2]
[372452238,1752648934522,-460.0,0.00019178,2]
[372452239,1752648934551,-460.0,0.00019178,2]
[372452240,1752648934580,-460.0,0.00019178,2]
[372452241,1752648934609,-460.0,0.00019178,2]
[372452242,1752648934728,-460.0,0.00019178,2]
[372452243,1752648934761,-991.17,0.00019178,2]
[372452244,1752648934791,-460.0,0.00019178,2]
[372452245,1752648934822,-460.0,0.00019178,2]
[372452246,1752648934939,-460.0,0.00019178,2]
[372452247,1752648934970,-460.0,0.00019178,2]
[372452248,1752648935000,-460.0,0.00019178,2]
[372452249,1752648935031,-460.0,0.00019178,2]
[372452250,1752648935062,-460.0,0.00019178,2]
[372452251,1752648935262,-372.26137893,0.00019178,2]
[372452252,1752648935276,-194.10862107,0.00019178,2]
[372452253,1752648935285,-63.55137893,0.00019178,2]
[372452254,1752648935323,-396.44862107,0.00019178,2]
[372452255,1752648935359,-594.55,0.00019178,2]
[372452256,1752648935391,-460.0,0.00019178,2]
[372452257,1752648935424,-460.0,0.00019178,2]
[372452258,1752648935455,-460.0,0.00019178,2]
[372452259,1752648935578,-329.00137893,0.00019178,2]
[372452260,1752648935616,-121.27549957,0.00019178,2]
[372452261,1752648935647,-460.0,0.00019178,2]
[372452262,1752648935679,-492.93,0.00019178,2]
[372452263,1752648935710,-292.17557465,0.00019178,2]
[372452264,1752648935739,-460.0,0.00019178,2]
[372452265,1752648935770,-460.0,0.00019178,2]
[372452266,1752648935896,-84.61754685,0.00019178,2]
[372452267,1752648935936,-375.38245315,0.00019178,2]
[372452268,1752648935968,-610.44,0.00019178,2]
[372452269,1752648935998,-460.0,0.00019178,2]
[372452270,1752648936028,-460.86957445,0.00019178,2]
[372452271,1752648936057,-460.0,0.00019178,2]
[372452272,1752648936137,-460.0,0.00019178,2]
[372452273,1752648936169,-462.17628464,0.00019178,2]
[372452274,1752648936198,-460.0,0.00019178,2]
[372452275,1752648936231,-460.0,0.00019178,2]
[372452276,1752648936261,-460.0,0.00019178,2]
[372452277,1752648936447,-460.0,0.00019178,2]
[372452278,1752648936479,-460.0,0.00019178,2]
[372452279,1752648936520,-460.0,0.00019178,2]
[372452280,1752648936550,-460.0,0.00019178,2]
[372452281,1752648936582,-460.0,0.00019178,2]
[372452282,1752648936794,-53.17606152,0.00019178,2]
[372452283,1752648936817,-406.82393848,0.00019178,2]
[372452284,1752648936826,-53.17606152,0.00019178,2]
[372452285,1752648936863,-406.82393848,0.00019178,2]
[372452286,1752648936996,-460.0,0.00019178,2]
[372452287,1752648937034,-460.0,0.00019178,2]
[372452288,1752648937064,-460.0,0.00019178,2]
[372452289,1752648937094,-460.0,0.00019178,2]
[372452290,1752648937126,-46.35212304,0.00019178,2]
[372452291,1752648937281,-402.4713692,0.00019178,2]
[372452292,1752648937295,-11.17650776,0.00019178,2]
[372452293,1752648937308,-448.82349224,0.00019178,2]
[372452294,1752648937325,-98.21552449,0.00019178,2]
[372452295,1752648937336,-301.78447551,0.00019178,2]
[372452296,1752648937368,-158.21552449,0.00019178,2]
[372452297,1752648937398,-460.0,0.00019178,2]
[372452298,1752648937428,-460.0,0.00019178,2]
[372452299,1752648937458,-460.0,0.00019178,2]
[372452300,1752648937489,-460.0,0.00019178,2]
[372452301,1752648937520,-460.0,0.00019178,2]
[372452302,1752648937628,-460.0,0.00019178,2]
[372452303,1752648937659,-460.0,0.00019178,2]
[372452304,1752648937690,-460.0,0.00019178,2]
[372452305,1752648937720,-460.0,0.00019178,2]
[372452306,1752648937750,-460.0,0.00019178,2]
[372452307,1752648937865,-460.0,0.00019178,2]
[372452308,1752648937894,-460.0,0.00019178,2]
[372452309,1752648937925,-460.0,0.00019178,2]
[372452310,1752648937957,-460.0,0.00019178,2]
[372452311,1752648937987,-460.0,0.00019178,2]
[372452312,1752648938086,-461.93342685,0.00019178,2]
[372452313,1752648938116,-460.0,0.00019178,2]
[372452314,1752648938147,-460.0,0.00019178,2]
[372452315,1752648938177,-407.01725086,0.00019178,2]
[372452316,1752648938211,-460.0,0.00019178,2]
[372452317,1752648938241,-42.09864458,0.00019178,2]
[372452318,1752648938412,-417.90135542,0.00019178,2]
[372452319,1752648938442,-460.0,0.00019178,2]
[372452320,1752648938471,-460.0,0.00019178,2]
[372452321,1752648938500,-531.24768816,0.00019178,2]
[372452322,1752648938532,-460.0,0.00019178,2]
[372452323,1752648938663,-460.0,0.00019178,2]
[372452324,1752648938694,-460.0,0.00019178,2]
[372452325,1752648938724,-460.0,0.00019178,2]
[372452326,1752648938756,-460.0,0.00019178,2]
[372452327,1752648938785,-500.0,0.00019178,2]
[372452328,1752648938924,-598.61,0.00019178,2]
[372452329,1752648938955,-460.0,0.00019178,2]
[372452330,1752648938987,-460.0,0.00019178,2]
[372452331,1752648939019,-460.0,0.00019178,2]
[372452332,1752648939049,-460.62711503,0.00019178,2]
[372452333,1752648939170,-460.0,0.00019178,2]
[372452334,1752648939203,-460.0,0.00019178,2]
[372452335,1752648939235,-460.0,0.00019178,2]
[372452336,1752648939265,-460.0,0.00019178,2]
[372452337,1752648939374,-1404.92,0.00019178,2]
[372452338,1752648939403,-460.0,0.00019178,2]
[372452339,1752648939434,-460.0,0.00019178,2]
[372452340,1752648939944,-172.46778736,0.00019178,2]
[372452341,1752648939958,-287.53221264,0.00019178,2]
[372452342,1752648939967,-173.09490239,0.00019178,2]
[372452343,1752648939986,-121.52576994,0.00019178,2]
[372452344,1752648940002,-165.37932767,0.00019178,2]
[372452345,1752648940011,-294.62067233,0.00019178,2]
[372452346,1752648940026,-165.37932767,0.00019178,2]
[372452347,1752648940035,-294.62067233,0.00019178,2]
[372452348,1752648940055,-165.37932767,0.00019178,2]
[372452349,1752648940064,-294.62067233,0.00019178,2]
[372452350,1752648940078,-165.37932767,0.00019178,2]
[372452351,1752648940087,-294.62067233,0.00019178,2]
[372452352,1752648940102,-165.37932767,0.00019178,2]
[372452353,1752648940112,-460.0,0.00019178,2]
[372452354,1752648940121,-460.0,0.00019178,2]
[372452355,1752648940131,-234.62067233,0.00019178,2]
[372452356,1752648940145,-225.37932767,0.00019178,2]
[372452357,1752648940155,-460.0,0.00019178,2]
[372452358,1752648940164,-460.0,0.00019178,2]
[372452359,1752648940174,-259.54067233,0.00019178,2]
[372452360,1752648940189,-200.45932767,0.00019178,2]
[372452361,1752648940198,-259.54067233,0.00019178,2]
[372452362,1752648940217,-200.45932767,0.00019178,2]
[372452363,1752648940227,-259.54067233,0.00019178,2]
[372452364,1752648940242,-199.76107549,0.00019178,2]
[372452365,1752648940253,-150.39892451,0.00019178,2]
[372452370,1752649019158,-5000.0,0.00018985,2]
[372452371,1752649019346,-300.0,0.00019177,2]
[372452372,1752649019376,-1200.0,0.00019177,2]
[372452373,1752649019410,-309.60107549,0.00019178,2]
[372452374,1752649019439,-460.0,0.00019178,2]
[372452375,1752649019469,-0.79784902,0.00019178,2]
[372452376,1752649019547,-459.20215098,0.00019178,2]
[372452377,1752649019810,-460.0,0.00019178,2]
[372452378,1752649019840,-460.0,0.00019178,2]
[372452379,1752649019871,-460.0,0.00019178,2]
[372452380,1752649019904,-1081.26,0.00019178,2]
[372452381,1752649019982,-77.48,0.00019178,2]
[372452382,1752649020209,-382.52,0.00019178,2]
[372452383,1752649020242,-460.0,0.00019178,2]
[372452384,1752649020274,-460.0,0.00019178,2]
[372452385,1752649020304,-460.0,0.00019178,2]
[372452386,1752649020333,-460.0,0.00019178,2]
[372452387,1752649020378,-94.96,0.00019178,2]
[372452388,1752649020487,-365.04,0.00019178,2]
[372452389,1752649020521,-460.0,0.00019178,2]
[372452390,1752649020552,-460.0,0.00019178,2]
[372452391,1752649020584,-460.0,0.00019178,2]
[372452392,1752649020614,-460.0,0.00019178,2]
[372452393,1752649020646,-129.92,0.00019178,2]
[372452394,1752649020763,-235.12,0.00019178,2]
[372452395,1752649020783,-94.96,0.00019178,2]
[372452396,1752649020792,-365.04,0.00019178,2]
[372452397,1752649020855,-94.96,0.00019178,2]
[372452398,1752649020886,-460.0,0.00019178,2]
[372452399,1752649020918,-460.0,0.00019178,2]
[372452400,1752649020949,-302.73370849,0.00019178,2]
[372452401,1752649020982,-460.0,0.00019178,2]
[372452402,1752649021013,-460.0,0.00019178,2]
[372452403,1752649021045,-64.61258302,0.00019178,2]
[372452404,1752649021157,-395.38741698,0.00019178,2]
[372452405,1752649021197,-460.0,0.00019178,2]
[372452406,1752649021230,-2002.15,0.00019178,2]
[372452407,1752649021271,-75.7,0.00019178,2]
[372452408,1752649021561,-2364.74,0.00019178,2]
[372452409,1752649021585,-270.52,0.00019178,2]
[372452410,1752649021836,-599.99,0.00019178,2]
[372452411,1752649021867,-460.0,0.00019178,2]
[372452412,1752649021899,-460.0,0.00019178,2]
[372452413,1752649021931,-460.0,0.00019178,2]
[372452414,1752649021963,-460.0,0.00019178,2]
[372452415,1752649022064,-120.02,0.00019178,2]
[372452416,1752649022444,-367.88,0.00019178,2]
[372452417,1752649022477,-460.0,0.00019178,2]
[372452418,1752649022507,-272.9956442,0.00019178,2]
[372452419,1752649022538,-460.0,0.00019178,2]
[372452420,1752649022568,-460.0,0.00019178,2]
[372452421,1752649022598,-460.0,0.00019178,2]
[372452422,1752649022720,-38.2487116,0.00019178,2]
[372452423,1752649022850,-421.7512884,0.00019178,2]
[372452424,1752649022881,-460.0,0.00019178,2]
[372452425,1752649022913,-460.0,0.00019178,2]
[372452426,1752649022945,-460.0,0.00019178,2]
[372452427,1752649022977,-460.0,0.00019178,2]
[372452428,1752649023011,-16.4974232,0.00019178,2]
[372452429,1752649023289,-443.5025768,0.00019178,2]
[372452430,1752649023326,-460.0,0.00019178,2]
[372452431,1752649023359,-460.0,0.00019178,2]
[372452432,1752649023391,-460.0,0.00019178,2]
[372452433,1752649023423,-460.0,0.00019178,2]
[372452434,1752649023454,-460.0,0.00019178,2]
[372452435,1752649023662,-400.0,0.00019178,2]
[372452436,1752649023697,-60.0,0.00019178,2]
[372452437,1752649023728,-460.0,0.00019178,2]
[372452438,1752649023758,-468.70947486,0.00019178,2]
[372452439,1752649023790,-460.0,0.00019178,2]
[372452440,1752649023821,-460.0,0.00019178,2]
[372452441,1752649023853,-500.0,0.00019178,2]
[372452442,1752649023944,-460.0,0.00019178,2]
[372452443,1752649023994,-670.31,0.00019178,2]
[372452444,1752649024029,-1069.78,0.00019178,2]
[372452445,1752649024059,-227.27895712,0.00019178,2]
[372452446,1752649024210,-145.26208576,0.00019178,2]
[372452447,1752649024219,-227.27895712,0.00019178,2]
[372452448,1752649024299,-232.72104288,0.00019178,2]
[372452449,1752649024331,-460.0,0.00019178,2]
[372452450,1752649024361,-460.0,0.00019178,2]
[372452451,1752649024394,-460.0,0.00019178,2]
[372452452,1752649024425,-460.0,0.00019178,2]
[372452453,1752649024457,-393.04791424,0.00019178,2]
[372452454,1752649024554,-68.46208576,0.00019177,2]
[372452455,1752649024589,-231.53791424,0.00019177,2]
[372452456,1752649024623,-68.46208576,0.00019178,2]
[372452457,1752649024655,-637.61,0.00019178,2]
[372452458,1752649024686,-460.0,0.00019178,2]
[372452459,1752649024716,-460.0,0.00019178,2]
[372452460,1752649024750,-460.0,0.00019178,2]
[372452461,1752649024966,-460.0,0.00019178,2]
[372452462,1752649025000,-460.0,0.00019178,2]
[372452463,1752649025033,-460.0,0.00019178,2]
[372452464,1752649025066,-460.0,0.00019178,2]
[372452465,1752649025098,-460.0,0.00019178,2]
[372452466,1752649025166,-462.43675601,0.00019178,2]
[372452467,1752649025197,-460.0,0.00019178,2]
[372452468,1752649025231,-1326.63648798,0.00019178,2]
[372452469,1752649025439,-501.85351202,0.00019178,2]
[372452470,1752649025470,-460.0,0.00019178,2]
[372452471,1752649025503,-731.28,0.00019178,2]
[372452472,1752649025535,-460.0,0.00019178,2]
[372452473,1752649025566,-233.73297596,0.00019178,2]
[372452474,1752649025643,-226.26702404,0.00019178,2]
[372452475,1752649025673,-460.0,0.00019178,2]
[372452476,1752649025707,-460.0,0.00019178,2]
[372452477,1752649025738,-460.0,0.00019178,2]
[372452478,1752649025771,-460.0,0.00019178,2]
[372452479,1752649025803,-407.46595192,0.00019178,2]
[372452480,1752649025951,-52.53404808,0.00019178,2]
[372452481,1752649025983,-460.0,0.00019178,2]
[372452482,1752649026015,-1550.96190384,0.00019178,2]
[372452483,1752649026242,-873.00809616,0.00019178,2]
[372452484,1752649026275,-1181.07,0.00019178,2]
[372452485,1752649026305,-431.84380768,0.00019178,2]
[372452486,1752649026481,-28.15619232,0.00019178,2]
[372452487,1752649026512,-460.0,0.00019178,2]
[372452488,1752649026543,-460.0,0.00019178,2]
[372452489,1752649026572,-460.0,0.00019178,2]
[372452490,1752649026603,-460.0,0.00019178,2]
[372452491,1752649026633,-500.0,0.00019178,2]
[372452492,1752649026747,-83.97,0.00019178,2]
[372452493,1752649026791,-460.0,0.00019178,2]
[372452494,1752649026841,-28.15619232,0.00019178,2]
[372452495,1752649026856,-460.0,0.00019178,2]
[372452496,1752649026876,-460.0,0.00019178,2]
[372452497,1752649026891,-460.0,0.00019178,2]
[372452498,1752649026906,-500.0,0.00019178,2]
[372452499,1752649026926,-263.68761536,0.00019178,2]
[372452500,1752649026966,-460.0,0.00019178,2]
[372452501,1752649027003,-4080.0,0.00019178,2]
[372452502,1752649027023,-460.0,0.00019178,2]
[372452503,1752649027038,-4080.0,0.00019178,2]
[372452504,1752649027102,-5000.0,0.00019178,2]
[372452505,1752649027364,-1504.72398456,0.00019178,2]
[372452506,1752649028099,460.0,0.00019178,2]
[372452507,1752649029564,500.0,0.00019178,2]
[372452508,1752649030949,460.0,0.00019178,2]
[372452509,1752649032922,468.93527625,0.00019178,2]
[372452510,1752649033120,101.61675463,0.00019178,2]
[372452511,1752649033149,126.51892941,0.00019178,2]
[372452512,1752649034189,460.0,0.00019178,2]
[372452513,1752649038811,460.0,0.00019178,2]
[372452514,1752649041392,460.0,0.00019178,2]
[372452515,1752649041518,460.0,0.00019178,2]
[372452516,1752649043338,460.0,0.00019178,2]
[372452517,1752649043388,460.0,0.00019178,2]
[372452518,1752649044153,460.0,0.00019178,2]
[372452520,1752649051550,460.0,0.00019178,2]
[372452521,1752649054228,460.0,0.00019178,2]
[372452522,1752649056447,460.0,0.00019178,2]
[372452523,1752649058287,273.48107059,0.00019178,2]
[372452524,1752649058315,572.58892941,0.00019178,2]
[372452525,1752649061019,460.0,0.00019178,2]
[372452526,1752649062169,461.57358295,0.00019178,2]
[372452527,1752649062600,978.76,0.00019178,2]
[372452528,1752649065521,460.0,0.00019178,2]
[372452529,1752649068788,460.0,0.00019178,2]
[372452530,1752649068926,460.0,0.00019178,2]
[372452531,1752649075613,460.0,0.00019178,2]
[372452532,1752649078969,460.0,0.00019178,2]
[372452533,1752649080389,227.07748764,0.00019178,2]
[372452534,1752649080415,232.92251236,0.00019178,2]
[372452535,1752649080785,460.0,0.00019178,2]
[372452536,1752649082393,500.0,0.00019178,2]
[372452537,1752649082497,461.86272213,0.00019178,2]
[372452538,1752649082646,500.0,0.00019178,2]
[372452539,1752649082880,500.0,0.00019178,2]
[372452540,1752649083873,460.0,0.00019178,2]
[372452541,1752649083911,460.0,0.00019178,2]
[372452542,1752649086351,538.9332041,0.00019178,2]
[372452543,1752649086768,460.0,0.00019178,2]
[372452544,1752649087542,426.28156141,0.00019178,2]
[372452545,1752649087568,107.14843859,0.00019178,2]
[372452546,1752649088305,460.0,0.00019178,2]
[372452547,1752649093168,460.0,0.00019178,2]
[372452548,1752649099885,876.15,0.00019178,2]
[372452549,1752649103220,460.0,0.00019178,2]
[372452550,1752649105158,594.21071822,0.00019178,2]
[372452551,1752649105193,460.0,0.00019178,2]
[372452552,1752649108704,460.0,0.00019178,2]
[372452553,1752649113034,1122.49084319,0.00019133,2]
[372452554,1752649113059,2087.17281129,0.00019133,2]
[372452555,1752649115752,460.0,0.00019178,2]
[372452556,1752649119153,183.86198701,0.00019178,2]
[372452557,1752649121132,560.72538807,0.00019178,2]
[372452558,1752649121724,460.0,0.00019178,2]
[372452559,1752649122886,460.0,0.00019178,2]
[372452560,1752649123568,460.0,0.00019178,2]
[372452561,1752649124067,328.23981363,0.00019178,2]
[372452562,1752649124092,131.76018637,0.00019178,2]
[372452563,1752649124401,460.0,0.00019178,2]
[372452564,1752649125465,460.0,0.00019178,2]
[372452565,1752649126023,460.0,0.00019178,2]
[372452566,1752649127504,460.0,0.00019178,2]
[372452567,1752649127867,455.04780188,0.00019178,2]
[372452568,1752649128261,690.19,0.00019178,2]
[372452569,1752649128727,460.0,0.00019178,2]
[372452570,1752649129842,460.0,0.00019178,2]
[372452571,1752649131705,560.5940781,0.00019178,2]
[372452572,1752649134458,402.40793365,0.00019178,2]
[372452573,1752649134485,57.59206635,0.00019178,2]
[372452574,1752649134633,460.0,0.00019178,2]
[372452575,1752649135089,460.0,0.00019178,2]
[372452576,1752649137728,460.0,0.00019178,2]
[372452577,1752649143913,460.0,0.00019178,2]
[372452578,1752649145117,460.0,0.00019178,2]
[372452579,1752649145802,460.0,0.00019178,2]
[372452580,1752649147378,1097.82,0.00019178,2]
[372452581,1752649149307,460.0,0.00019178,2]
[372452582,1752649150136,460.0,0.00019178,2]
[372452583,1752649150419,164.58793365,0.00019178,2]
[372452584,1752649150444,295.41206635,0.00019178,2]
[372452585,1752649154864,4615.59,0.00019178,2]
[372452586,1752649158057,88.99793365,0.00019178,2]
[372452587,1752649158083,417.92277546,0.00019178,2]
[372452588,1752649158117,460.0,0.00019178,2]
[372452589,1752649160156,460.0,0.00019178,2]
[372452590,1752649162104,460.0,0.00019178,2]
[372452591,1752649163023,460.0,0.00019178,2]
[372452592,1752649163974,460.0,0.00019178,2]
[372452593,1752649164170,1848.76,0.00019178,2]
[372452594,1752649164346,433.31722454,0.00019178,2]
[372452595,1752649164371,26.68277546,0.00019178,2]
[372452596,1752649164429,460.0,0.00019178,2]
[372452597,1752649164702,460.0,0.00019178,2]
[372452598,1752649166039,460.0,0.00019178,2]
[372452599,1752649166777,460.41250572,0.00019178,2]
[372452600,1752649166808,460.0,0.00019178,2]
[372452601,1752649166839,460.0,0.00019178,2]
[372452602,1752649167803,460.0,0.00019178,2]
[372452603,1752649168413,460.0,0.00019178,2]
[372452604,1752649168782,460.0,0.00019178,2]
[372452605,1752649169582,460.0,0.00019178,2]
[372452606,1752649171091,372.90471882,0.00019178,2]
[372452607,1752649171115,87.09528118,0.00019178,2]
[372452608,1752649171174,460.0,0.00019178,2]
[372452609,1752649172913,460.0,0.00019178,2]
[372452610,1752649174349,460.0,0.00019178,2]
[372452611,1752649177841,460.0,0.00019178,2]
[372452612,1752649180609,3072.90471882,0.00019178,2]
[372452613,1752649180636,192.62528118,0.00019178,2]
[372452614,1752649180874,527.55,0.00019178,2]
[372452615,1752649182319,460.0,0.00019178,2]
[372452616,1752649182997,460.0,0.00019178,2]
[372452617,1752649187682,460.0,0.00019178,2]
[372452618,1752649188942,460.0,0.00019178,2]
[372452619,1752649191629,460.0,0.00019178,2]
[372452620,1752649194282,460.0,0.00019178,2]
[372452621,1752649194329,460.0,0.00019178,2]
[372452622,1752649194685,460.0,0.00019178,2]
[372452623,1752649194727,460.0,0.00019178,2]
[372452624,1752649196482,139.82471882,0.00019178,2]
[372452625,1752649196508,320.17528118,0.00019178,2]
[372452626,1752649196736,460.0,0.00019178,2]
[372452627,1752649198226,460.0,0.00019178,2]
[372452628,1752649199129,460.0,0.00019178,2]
[372452629,1752649199803,460.0,0.00019178,2]
[372452630,1752649200731,460.37799314,0.00019178,2]
[372452631,1752649201407,460.0,0.00019178,2]
[372452632,1752649205001,460.0,0.00019178,2]
[372452633,1752649208157,460.0,0.00019178,2]
[372452634,1752649208807,460.0,0.00019178,2]
[372452635,1752649211494,463.67983135,0.00019178,2]
[372452636,1752649211931,75.76689433,0.00019178,2]
[372452638,1752649371762,-1223.6247795,0.00018451,2]
[372452653,1752649515194,-199.700223,0.0001853,2]
[372452654,1752649533711,-273.35130364,0.00018603,2]
[372452655,1752649535130,-295.91375356,0.00019078,2]
[372452656,1752649535152,-300.0,0.00019176,2]
[372452657,1752649535174,-1200.0,0.00019177,2]
[372452658,1752649535195,-300.0,0.00019177,2]
[372452659,1752649535216,-148.54779224,0.00019177,2]
[372452660,1752649550099,-151.45220776,0.00019177,2]
[372452661,1752649550122,-300.0,0.00019177,2]
[372452662,1752649550146,-300.0,0.00019177,2]
[372452663,1752649550168,-1200.0,0.00019177,2]
[372452664,1752649550191,-105.01945554,0.00019178,2]
[372452667,1752649598097,422.659016,0.00013699,2]
[372452668,1752649626098,-300.0,0.00019176,2]
[372452669,1752649626118,-938.82008854,0.00019177,2]
[372452670,1752649634081,-1113.35247738,0.00019143,2]
[372452671,1752649634109,-2096.3111771,0.00019143,2]
[372452672,1752649634130,-261.17991146,0.00019177,2]
[372452673,1752649634151,-500.0,0.00019177,2]
[372452674,1752649634172,-223.86467968,0.00019177,2]